fUSD/lending_fUSD_20260219
["ID","MTS","AMOUNT","RATE_DAILY","PERIOD"]
[405980009,1771488662947,-166.0,0.00044452,30]
[405980010,1771488662958,-166.0,0.00044452,30]
[405980011,1771488662968,-166.0,0.00044452,30]
[405980012,1771488662980,-170.64293936,0.00044452,30]
[405980013,1771488662990,-519.95,0.00044453,2]
[405980014,1771488663001,-519.95,0.00044453,2]
[405980015,1771488663011,-519.95,0.00044453,2]
[405980016,1771488663022,-519.95,0.00044453,2]
[405980017,1771488663032,-519.95,0.00044453,2]
[405980018,1771488663043,-519.95,0.00044453,2]
[405980019,1771488663054,-519.95,0.00044453,2]
[405980020,1771488663064,-520.18211764,0.00044453,2]
[405980021,1771488663075,-201.52,0.00044453,30]
[405980022,1771488663086,-471.69,0.00044453,30]
[405980023,1771488663097,-41066.7764721,0.00044454,2]
[405980024,1771488663108,-200.0,0.00044454,7]
[405980025,1771488663119,-151.0,0.00044454,30]
[405980026,1771488663130,-2000.0,0.00044454,7]
[405980027,1771488663140,-200.0,0.00044454,7]
[405980028,1771488663151,-200.0,0.00044454,7]
[405980029,1771488663161,-352.09461882,0.00044454,30]
[405980030,1771488663171,-200.0,0.00044454,7]
[405980031,1771488663182,-400.0,0.0004447,3]
[405980032,1771488663193,-300.0,0.0004447,3]
[405980033,1771488663204,-400.0,0.0004447,3]
[405980034,1771488663215,-1023.99,0.0004448,120]
[405980035,1771488663225,-488.81,0.00044485,120]
[405980036,1771488663236,-500.0,0.00044493,120]
[405980037,1771488663248,-319.55731986,0.000445,120]
[405980038,1771488663259,-187.41015212,0.000445,120]
[405980039,1771488663270,-224.70174659,0.000445,120]
[405980040,1771488663280,-210.50309402,0.000445,120]
[405980041,1771488663291,-607.10213493,0.000445,120]
[405980042,1771488663302,-189.35950666,0.000445,120]
[405980043,1771488663312,-191.30528563,0.000445,120]
[405980044,1771488663323,-191.62848258,0.000445,120]
[405980045,1771488663336,-224.70174659,0.000445,120]
[405980046,1771488663347,-1003.89538002,0.000445,2]
[405980047,1771488663357,-1003.89538002,0.000445,2]
[405980048,1771488663367,-838.18050534,0.000445,2]
[405980049,1771488663378,-838.18050534,0.000445,2]
[405980050,1771488663391,-1315.04486669,0.000445,2]
[405980051,1771488663402,-1315.04486669,0.000445,2]
[405980052,1771488663412,-500.0,0.000445,120]
[405980053,1771488663423,-190.33,0.00044507,120]
[405980054,1771488663434,-72460.95218422,0.00044514,50]
[405980055,1771488663445,-6089378.83762281,0.00044514,10]
[405980056,1771488663616,-1007.6232936,0.00044514,10]
[405980057,1771488663630,-518.0,0.00044514,10]
[405980139,1771489567109,177.19,6.529e-05,2]
[405980141,1771489692471,315.00584563,0.00018,30]
[405980154,1771489831296,-300.0,8.642e-05,2]
[405980157,1771489831306,-300.0,8.642e-05,2]
[405980159,1771489831315,-165.71985383,8.642e-05,2]
[405980161,1771489831327,-579.76289887,8.642e-05,2]
[405980163,1771489831422,-454.5172473,8.642e-05,2]
[405980164,1771489831432,-222.0,8.642e-05,2]
[405980165,1771489831441,-296.15267245,8.643e-05,2]
[405980166,1771489831454,-203.84732755,8.643e-05,2]
[405980167,1771489831464,-525.66550273,8.643e-05,2]
[405980168,1771489831475,-105.65597837,8.643e-05,2]
[405980169,1771489831484,-500.0,8.643e-05,2]
[405980170,1771489831494,-576.99834736,8.643e-05,2]
[405980171,1771489831535,-147.69648218,8.643e-05,2]
[405980172,1771489831545,-111.69367604,8.917e-05,2]
[405980173,1771489831556,-613.00115349,8.917e-05,2]
[405980175,1771489831566,-454.438108,9.032e-05,2]
[405980177,1771489831575,-513.73370179,9.088e-05,2]
[405980179,1771489831586,-531.26629821,9.088e-05,2]
[405980181,1771489831596,-150.0,9.088e-05,2]
[405980183,1771489831606,-500.0,9.089e-05,2]
[405980186,1771489831616,-560.37039506,9.089e-05,2]
[405980187,1771489831625,-173.97378961,9.089e-05,2]
[405980190,1771489831636,-326.02621039,9.089e-05,2]
[405980192,1771489831645,-266.29927225,9.089e-05,2]
[405980194,1771489831654,-116.18054741,9.089e-05,2]
[405980203,1771489837482,-383.81945259,9.089e-05,2]
[405980204,1771489837492,-500.0,9.089e-05,2]
[405980205,1771489837501,-500.0,9.089e-05,2]
[405980206,1771489837510,-445.53064837,9.089e-05,2]
[405980207,1771489837518,-500.0,9.089e-05,2]
[405980208,1771489837527,-500.0,9.089e-05,2]
[405980209,1771489837535,-500.0,9.089e-05,2]
[405980210,1771489837543,-500.0,9.089e-05,2]
[405980211,1771489837552,-452.87874318,9.089e-05,2]
[405980212,1771489837565,-47.12125682,9.089e-05,2]
[405980213,1771489837577,-293.67354628,9.089e-05,2]
[405980214,1771489837589,-206.32645372,9.089e-05,2]
[405980215,1771489837601,-500.0,9.089e-05,2]
[405980216,1771489837613,-500.0,9.089e-05,2]
[405980217,1771489837623,-500.0,9.089e-05,2]
[405980218,1771489837630,-480.88888393,9.089e-05,2]
[405980222,1771489839827,-19.11111607,9.089e-05,2]
[405980223,1771489839837,-273.01104169,9.089e-05,2]
[405980224,1771489839846,-196.60194083,9.089e-05,2]
[405980257,1771489844318,-303.39805917,9.089e-05,2]
[405980258,1771489844327,-172.53450521,9.089e-05,2]
[405980263,1771489845283,-327.46549479,9.089e-05,2]
[405980264,1771489845294,-500.0,9.089e-05,2]
[405980265,1771489845303,-500.0,9.089e-05,2]
[405980266,1771489845315,-500.0,9.089e-05,2]
[405980267,1771489845324,-500.0,9.089e-05,2]
[405980268,1771489845334,-500.0,9.089e-05,2]
[405980269,1771489845345,-500.0,9.089e-05,2]
[405980270,1771489845354,-500.0,9.089e-05,2]
[405980271,1771489845363,-500.0,9.089e-05,2]
[405980272,1771489845372,-500.0,9.089e-05,2]
[405980273,1771489845381,-500.0,9.089e-05,2]
[405980274,1771489845393,-500.0,9.089e-05,2]
[405980275,1771489845402,-500.0,9.089e-05,2]
[405980276,1771489845411,-500.0,9.089e-05,2]
[405980277,1771489845420,-500.0,9.089e-05,2]
[405980278,1771489845429,-500.0,9.089e-05,2]
[405980279,1771489845438,-500.0,9.089e-05,2]
[405980280,1771489845448,-500.0,9.089e-05,2]
[405980281,1771489845457,-307.98908127,9.089e-05,2]
[405980282,1771489845482,-192.01091873,9.089e-05,2]
[405980283,1771489845494,-500.0,9.089e-05,2]
[405980284,1771489845504,-500.0,9.089e-05,2]
[405980285,1771489845512,-500.0,9.089e-05,2]
[405980286,1771489845522,-87.48908127,9.089e-05,2]
[405980296,1771490201443,2277.73203105,8.7e-05,3]
[405980297,1771490201495,3128.82484343,8.7e-05,3]
[405980298,1771490201569,1213.86601551,8.7e-05,3]
[405980299,1771490201652,5894.87648376,8.7e-05,3]
[405980300,1771490222688,10000.0,6.529e-05,2]
[405980301,1771490239083,10000.0,9e-05,10]
[405980302,1771490257647,10000.0,9e-05,10]
[405980304,1771490307985,568.46362302,8.7e-05,3]
[405980305,1771490308106,1321.69814447,8.7e-05,3]
[405980306,1771490308158,986.92724609,8.7e-05,3]
[405980307,1771490308214,2409.70356434,8.7e-05,3]
[405980308,1771490325216,10000.0,0.00018,30]
[405980309,1771490346658,10000.0,0.00018,30]
[405980310,1771490360666,10000.0,0.00018,30]
[405980311,1771490371932,10000.0,0.00018,30]
[405980312,1771490394254,10000.0,0.00018,30]
[405980313,1771490407750,10000.0,0.00018,30]
[405980314,1771490425236,10000.0,0.00018,30]
[405980315,1771490443820,9581.09,0.00018,30]
[405980319,1771490569320,500.0,8.6e-05,3]
[405980320,1771490571400,1000.0,8.7e-05,3]
[405980321,1771490573490,1500.0,8.8e-05,3]
[405980323,1771490575583,2000.0,8.9e-05,3]
[405980324,1771490577682,2500.0,9e-05,3]
[405980339,1771491031497,-1200.0,8.642e-05,2]
[405980341,1771491031509,-300.0,8.642e-05,2]
[405980343,1771491031520,-222.0,8.642e-05,2]
[405980344,1771491031530,-500.0,8.643e-05,2]
[405980345,1771491031541,-500.0,8.643e-05,2]
[405980346,1771491031552,-500.0,8.643e-05,2]
[405980347,1771491031563,-170.23196456,8.643e-05,2]
[405980348,1771491031574,-241.56494319,8.643e-05,2]
[405980349,1771491031584,-500.0,8.686e-05,2]
[405980350,1771491031595,-392.25927654,8.686e-05,2]
[405980351,1771491031606,-186.40949057,8.686e-05,2]
[405980352,1771491031617,-500.0,8.686e-05,2]
[405980353,1771491031631,-500.0,8.686e-05,2]
[405980354,1771491031642,-500.0,8.686e-05,2]
[405980355,1771491031652,-411.87145386,8.686e-05,2]
[405980357,1771491031663,-500.0,8.686e-05,2]
[405980359,1771491031673,-244.175054,8.686e-05,2]
[405980368,1771491031742,-255.824946,8.686e-05,2]
[405980369,1771491031753,-44.165054,8.686e-05,2]
[405980371,1771491031765,-303.999998,8.686e-05,2]
[405980374,1771491031778,-151.834948,8.686e-05,2]
[405980376,1771491031789,-500.0,8.686e-05,2]
[405980378,1771491031802,-54.655052,8.686e-05,2]
[405980381,1771491031828,-445.344948,8.686e-05,2]
[405980383,1771491031839,-500.0,8.686e-05,2]
[405980384,1771491031849,-500.0,8.686e-05,2]
[405980385,1771491031859,-500.0,8.686e-05,2]
[405980386,1771491031870,-500.0,8.686e-05,2]
[405980387,1771491031880,-500.0,8.686e-05,2]
[405980388,1771491031891,-500.0,8.686e-05,2]
[405980389,1771491031901,-500.0,8.686e-05,2]
[405980390,1771491031913,-500.0,8.686e-05,2]
[405980391,1771491031924,-500.0,8.686e-05,2]
[405980392,1771491031934,-500.0,8.686e-05,2]
[405980393,1771491031949,-500.0,8.686e-05,2]
[405980394,1771491031969,-500.0,8.686e-05,2]
[405980395,1771491031980,-500.0,8.686e-05,2]
[405980396,1771491031991,-500.0,8.686e-05,2]
[405980397,1771491032002,-504.90348679,8.686e-05,2]
[405980398,1771491032016,-500.0,8.686e-05,2]
[405980399,1771491032030,-500.0,8.686e-05,2]
[405980400,1771491032041,-500.0,8.686e-05,2]
[405980401,1771491032052,-500.0,8.686e-05,2]
[405980402,1771491032340,-500.0,8.686e-05,2]
[405980403,1771491032356,-500.0,8.686e-05,2]
[405980404,1771491032367,-500.0,8.686e-05,2]
[405980405,1771491032377,-500.0,8.686e-05,2]
[405980406,1771491032386,-500.0,8.686e-05,2]
[405980407,1771491032395,-500.0,8.686e-05,2]
[405980408,1771491032404,-500.0,8.686e-05,2]
[405980409,1771491032413,-500.0,8.686e-05,2]
[405980410,1771491032422,-500.0,8.686e-05,2]
[405980411,1771491032432,-600.0,8.686e-05,2]
[405980412,1771491032441,-4863.8296062,8.687e-05,2]
[405980413,1771491032452,-911.72705474,8.687e-05,2]
[405980414,1771491037509,-241.56494317,8.666e-05,2]
[405980415,1771491037519,-94.39505687,8.687e-05,2]
[405980416,1771491037563,-5753.47089063,8.687e-05,2]
[405980417,1771491037574,-12542.72557445,8.687e-05,2]
[405980422,1771491039758,-500.32111708,8.643e-05,2]
[405980423,1771491039768,-1039.99258266,8.687e-05,2]
[405980424,1771491039967,-482.23785364,8.687e-05,2]
[405980425,1771491039978,-412.0,8.687e-05,2]
[405980476,1771491044248,-198273.97152761,8.687e-05,2]
[405980481,1771491045716,-1004.411817,8.687e-05,2]
[405980505,1771491249304,-500.0,0.00044544,120]
[405980506,1771491249327,-658.08857896,0.00044544,30]
[405980507,1771491249349,-2117.26966649,0.00044544,120]
[405980508,1771491249381,-240.0,0.00044544,30]
[405980509,1771491249408,-1120.00569359,0.00044544,118]
[405980510,1771491249434,-254.0,0.00044544,30]
[405980511,1771491249458,-1636.5682335,0.00044544,45]
[405980512,1771491249482,-169.0,0.00044544,30]
[405980513,1771491249505,-169.0,0.00044544,120]
[405980514,1771491249529,-200.0,0.00044544,120]
[405980515,1771491249552,-200.0,0.00044544,120]
[405980516,1771491249577,-200.0,0.00044544,120]
[405980517,1771491249600,-200.0,0.00044544,120]
[405980518,1771491249623,-200.0,0.00044544,120]
[405980519,1771491249645,-200.0,0.00044544,120]
[405980520,1771491249669,-169.0,0.00044544,30]
[405980521,1771491249692,-200.0,0.00044544,120]
[405980522,1771491249718,-200.0,0.00044544,120]
[405980523,1771491249745,-218.95116018,0.00044544,120]
[405980524,1771491249774,-169.0,0.00044544,120]
[405980525,1771491249801,-200.0,0.00044544,120]
[405980526,1771491249826,-200.0,0.00044544,120]
[405980527,1771491249850,-200.0,0.00044544,120]
[405980528,1771491249877,-200.0,0.00044544,120]
[405980529,1771491249902,-200.0,0.00044544,120]
[405980530,1771491249925,-228.98057726,0.00044544,120]
[405980531,1771491249950,-239.0,0.00044544,30]
[405980532,1771491249973,-239.0,0.00044544,120]
[405980533,1771491249998,-743.0,0.00044544,30]
[405980534,1771491250024,-743.0,0.00044544,120]
[405980535,1771491250049,-261.27757514,0.00044544,60]
[405980536,1771491250076,-744.0,0.00044544,30]
[405980537,1771491250101,-744.0,0.00044544,120]
[405980538,1771491250125,-449.0,0.00044544,30]
[405980539,1771491250149,-449.0,0.00044544,120]
[405980540,1771491250172,-800.0,0.00044544,31]
[405980541,1771491250196,-800.0,0.00044544,31]
[405980542,1771491250218,-800.0,0.00044544,31]
[405980543,1771491250241,-800.0,0.00044544,31]
[405980544,1771491250264,-800.0,0.00044544,31]
[405980545,1771491250287,-800.0,0.00044544,31]
[405980546,1771491250311,-800.0,0.00044544,31]
[405980547,1771491250334,-800.0,0.00044544,31]
[405980548,1771491250357,-800.0,0.00044544,31]
[405980549,1771491250381,-800.0,0.00044544,31]
[405980550,1771491250404,-1000.0,0.00044544,30]
[405980551,1771491250428,-800.0,0.00044544,31]
[405980552,1771491250452,-800.0,0.00044544,31]
[405980553,1771491250476,-800.0,0.00044544,31]
[405980554,1771491250501,-800.0,0.00044544,31]
[405980555,1771491250526,-800.0,0.00044544,31]
[405980556,1771491250550,-800.0,0.00044544,31]
[405980557,1771491250575,-800.0,0.00044544,31]
[405980558,1771491250598,-800.0,0.00044544,31]
[405980559,1771491250623,-800.0,0.00044544,31]
[405980560,1771491250648,-800.0,0.00044544,31]
[405980561,1771491250673,-800.0,0.00044544,31]
[405980562,1771491250697,-800.0,0.00044544,31]
[405980563,1771491250721,-800.0,0.00044544,31]
[405980564,1771491250744,-800.0,0.00044544,31]
[405980565,1771491250769,-800.0,0.00044544,31]
[405980566,1771491250793,-800.0,0.00044544,31]
[405980567,1771491250817,-800.0,0.00044544,31]
[405980568,1771491250841,-800.0,0.00044544,31]
[405980569,1771491250864,-800.0,0.00044544,31]
[405980570,1771491250890,-800.0,0.00044544,31]
[405980571,1771491250913,-800.0,0.00044544,31]
[405980572,1771491250936,-800.0,0.00044544,31]
[405980573,1771491250960,-800.0,0.00044544,31]
[405980574,1771491250984,-800.0,0.00044544,31]
[405980575,1771491251008,-800.0,0.00044544,31]
[405980576,1771491251032,-800.0,0.00044544,31]
[405980577,1771491251058,-800.0,0.00044544,31]
[405980578,1771491251081,-800.0,0.00044544,31]
[405980579,1771491251114,-800.0,0.00044544,31]
[405980580,1771491251141,-800.0,0.00044544,31]
[405980581,1771491251163,-800.0,0.00044544,31]
[405980582,1771491251188,-800.0,0.00044544,31]
[405980583,1771491251210,-800.0,0.00044544,31]
[405980584,1771491251233,-800.0,0.00044544,31]
[405980585,1771491251256,-800.0,0.00044544,31]
[405980586,1771491251279,-800.0,0.00044544,31]
[405980587,1771491251303,-800.0,0.00044544,31]
[405980588,1771491251327,-800.0,0.00044544,31]
[405980589,1771491251349,-800.0,0.00044544,31]
[405980590,1771491251373,-800.0,0.00044544,31]
[405980591,1771491251396,-800.0,0.00044544,31]
[405980592,1771491251419,-1000.0,0.00044544,60]
[405980593,1771491251442,-1000.0,0.00044544,60]
[405980594,1771491251466,-577.93548495,0.00044544,120]
[405980595,1771491251489,-162.54404551,0.00044544,30]
[405980596,1771491251512,-244.6680551,0.00044544,30]
[405980597,1771491251535,-546.01574592,0.00044544,30]
[405980598,1771491251557,-1999.999994,0.00044544,120]
[405980599,1771491251734,-408.2377235,0.00044544,30]
[405980600,1771491251757,-1932.37384372,0.00044544,91]
[405980601,1771491251781,-940.4920734,0.00044544,30]
[405980602,1771491251805,-1204.41957774,0.00044544,30]
[405980603,1771491251828,-1734.39109057,0.00044544,120]
[405980604,1771491251850,-1000.0,0.00044544,30]
[405980605,1771491251874,-1154.65423233,0.00044544,120]
[405980606,1771491251897,-2176.2136197,0.00044544,30]
[405980607,1771491251920,-478.96159311,0.00044544,120]
[405980608,1771491251944,-793.47338142,0.00044544,30]
[405980609,1771491251966,-317.07751057,0.00044544,120]
[405980610,1771491251991,-384.94135516,0.00044544,120]
[405980611,1771491252016,-1000.0,0.00044544,60]
[405980612,1771491252039,-1348.78784405,0.00044544,120]
[405980613,1771491252066,-324.20893712,0.00044544,30]
[405980614,1771491252091,-1048.38965483,0.00044544,120]
[405980615,1771491252113,-893.25109165,0.00044544,120]
[405980616,1771491252135,-1000.0,0.00044544,30]
[405980617,1771491252157,-1494.96981074,0.00044544,120]
[405980618,1771491252180,-1049.85784054,0.00044544,120]
[405980619,1771491252203,-920.99850473,0.00044544,30]
[405980620,1771491252228,-2337.44091027,0.00044544,30]
[405980621,1771491252250,-929.99971918,0.00044544,30]
[405980622,1771491252272,-1440.3884633,0.00044544,120]
[405980623,1771491252295,-1000.0,0.00044544,30]
[405980624,1771491252318,-412.48607408,0.00044544,120]
[405980625,1771491252342,-1001.74160354,0.00044544,30]
[405980626,1771491252365,-635.95883866,0.00044544,60]
[405980627,1771491252387,-164.06068129,0.00044544,120]
[405980628,1771491252410,-330.3121646,0.00044544,120]
[405980629,1771491252434,-1524.14259873,0.00044544,30]
[405980630,1771491252458,-1226.42664475,0.00044544,120]
[405980631,1771491252484,-222.39261888,0.00044544,30]
[405980632,1771491252508,-1035.18197539,0.00044544,30]
[405980633,1771491252533,-532.63678314,0.00044544,120]
[405980634,1771491252557,-1000.0,0.00044544,60]
[405980635,1771491252581,-193.81699712,0.00044544,120]
[405980636,1771491252604,-531.73998918,0.00044544,120]
[405980637,1771491252626,-327.68404829,0.00044544,120]
[405980638,1771491252650,-881.25958307,0.00044544,120]
[405980639,1771491252676,-152.43555839,0.00044544,30]
[405980640,1771491252700,-800.0,0.00044544,31]
[405980641,1771491252724,-800.0,0.00044544,31]
[405980642,1771491252749,-800.0,0.00044544,31]
[405980643,1771491252773,-800.0,0.00044544,31]
[405980644,1771491252796,-800.0,0.00044544,31]
[405980645,1771491252819,-800.0,0.00044544,31]
[405980646,1771491252842,-800.0,0.00044544,31]
[405980647,1771491252864,-800.0,0.00044544,31]
[405980648,1771491252886,-612.04059077,0.00044544,120]
[405980649,1771491252909,-800.0,0.00044544,31]
[405980650,1771491252934,-800.0,0.00044544,31]
[405980651,1771491252956,-800.0,0.00044544,31]
[405980652,1771491252980,-800.0,0.00044544,31]
[405980653,1771491253005,-1000.0,0.00044544,30]
[405980654,1771491253028,-376.30333345,0.00044544,30]
[405980655,1771491253051,-235.20762446,0.00044544,30]
[405980656,1771491253076,-503.68039767,0.00044544,120]
[405980657,1771491253099,-1000.0,0.00044544,30]
[405980658,1771491253121,-775.168066,0.00044544,120]
[405980659,1771491253146,-526.3948269,0.00044544,30]
[405980660,1771491253170,-443.70157324,0.00044544,120]
[405980661,1771491253193,-235.6262766,0.00044544,30]
[405980662,1771491253216,-1000.0,0.00044544,60]
[405980663,1771491253239,-1460.493548,0.00044544,90]
[405980664,1771491253262,-494.03657539,0.00044544,120]
[405980665,1771491253285,-599.55353671,0.00044544,30]
[405980666,1771491253309,-1000.0,0.00044544,60]
[405980667,1771491253331,-2309.88045395,0.00044544,30]
[405980668,1771491253354,-1364.8528051,0.00044544,120]
[405980669,1771491253376,-905.92393777,0.00044544,60]
[405980670,1771491253399,-1000.0,0.00044544,30]
[405980671,1771491253423,-1089.65205143,0.00044544,30]
[405980672,1771491253445,-1070.73076657,0.00044544,120]
[405980673,1771491253468,-1187.9630126,0.00044544,120]
[405980674,1771491253492,-190.22137783,0.00044544,120]
[405980675,1771491253515,-1000.0,0.00044544,30]
[405980676,1771491253537,-617.67169744,0.00044544,120]
[405980677,1771491253560,-223.9,0.00044544,120]
[405980678,1771491253583,-888.55120373,0.00044544,120]
[405980679,1771491253605,-1164.53113016,0.00044544,120]
[405980680,1771491253628,-176.21761586,0.00044544,120]
[405980681,1771491253651,-360.60343893,0.00044544,120]
[405980682,1771491253675,-450.82204454,0.00044544,120]
[405980683,1771491253698,-545.06912455,0.00044544,120]
[405980684,1771491253723,-257.16806079,0.00044544,120]
[405980685,1771491253746,-386.90737972,0.00044544,30]
[405980686,1771491253770,-1000.0,0.00044544,30]
[405980687,1771491253791,-534.89235009,0.00044544,120]
[405980688,1771491253816,-997.0,0.00044544,30]
[405980689,1771491253839,-1681.78929197,0.00044544,120]
[405980690,1771491253862,-266.31563104,0.00044544,120]
[405980691,1771491253884,-254.39978221,0.00044544,30]
[405980692,1771491253909,-558.77484638,0.00044544,30]
[405980693,1771491253932,-1387.22082326,0.00044544,120]
[405980694,1771491253956,-1000.0,0.00044544,30]
[405980695,1771491253978,-416.64273161,0.00044544,120]
[405980696,1771491254001,-800.78473736,0.00044544,120]
[405980697,1771491254024,-951.53523265,0.00044544,30]
[405980698,1771491254051,-674.18301914,0.00044544,120]
[405980699,1771491254079,-1008.29369812,0.00044544,30]
[405980700,1771491254105,-1000.0,0.00044544,30]
[405980701,1771491254129,-1371.56794048,0.00044544,120]
[405980702,1771491254152,-1100.06156701,0.00044544,120]
[405980703,1771491254294,-156.93348721,0.00044544,120]
[405980704,1771491254317,-607.74775819,0.00044544,120]
[405980705,1771491254340,-191.29903807,0.00044544,60]
[405980706,1771491254365,-269.04707442,0.00044544,120]
[405980707,1771491254388,-515.15426781,0.00044544,120]
[405980708,1771491254414,-1772.81042765,0.00044544,120]
[405980709,1771491254440,-1000.0,0.00044544,30]
[405980710,1771491254463,-220.71211475,0.00044544,120]
[405980711,1771491254487,-907.78210554,0.00044544,120]
[405980712,1771491254510,-682.30603957,0.00044544,30]
[405980713,1771491254533,-285.40452925,0.00044544,30]
[405980714,1771491254556,-625.35229306,0.00044544,120]
[405980715,1771491254579,-2181.18771388,0.00044544,60]
[405980716,1771491254603,-1625.85456411,0.00044544,120]
[405980717,1771491254626,-413.97748232,0.00044544,120]
[405980718,1771491254649,-1920.16628617,0.00044544,30]
[405980719,1771491254674,-603.00855251,0.00044544,120]
[405980720,1771491254697,-465.33375336,0.00044544,120]
[405980721,1771491254720,-1318.31822508,0.00044544,30]
[405980722,1771491254742,-202.36601141,0.00044544,120]
[405980723,1771491254765,-756.0,0.00044544,120]
[405980724,1771491254788,-287.61845995,0.00044544,120]
[405980725,1771491254810,-1132.16792114,0.00044544,120]
[405980726,1771491254833,-1077.63706469,0.00044544,120]
[405980727,1771491254856,-581.91620731,0.00044544,120]
[405980728,1771491254880,-520.65666329,0.00044544,120]
[405980729,1771491254905,-181.78620342,0.00044544,120]
[405980730,1771491254929,-841.62421562,0.00044544,120]
[405980731,1771491254952,-1392.72690348,0.00044544,30]
[405980732,1771491254974,-555.68795143,0.00044544,120]
[405980733,1771491254996,-567.24152433,0.00044544,120]
[405980734,1771491255018,-1441.86431982,0.00044544,120]
[405980735,1771491255041,-1000.0,0.00044544,60]
[405980736,1771491255066,-160.84755814,0.00044544,30]
[405980737,1771491255090,-1600.80161904,0.00044544,120]
[405980738,1771491255115,-1116.47472735,0.00044544,30]
[405980739,1771491255140,-346.87774633,0.00044544,120]
[405980740,1771491255162,-1456.47005827,0.00044544,120]
[405980741,1771491255185,-382.51774545,0.00044544,120]
[405980742,1771491255208,-198.02909292,0.00044544,120]
[405980743,1771491255229,-237.1875626,0.00044544,120]
[405980744,1771491255252,-385.66828045,0.00044544,120]
[405980745,1771491255274,-2118.39839349,0.00044544,30]
[405980746,1771491255298,-2146.12375766,0.00044544,120]
[405980747,1771491255321,-176.18600546,0.00044544,120]
[405980748,1771491255344,-1269.62710883,0.00044544,30]
[405980749,1771491255367,-1350.08516453,0.00044544,120]
[405980750,1771491255389,-1638.11501738,0.00044544,120]
[405980751,1771491255412,-276.29375807,0.00044544,120]
[405980752,1771491255436,-485.11601567,0.00044544,60]
[405980753,1771491255459,-1791.36066749,0.00044544,120]
[405980754,1771491255483,-358.19827565,0.00044544,120]
[405980755,1771491255505,-1043.56536723,0.00044544,120]
[405980756,1771491255529,-2740.80236129,0.00044544,30]
[405980757,1771491255552,-480.98611314,0.00044544,120]
[405980758,1771491255574,-1659.32522117,0.00044544,30]
[405980759,1771491255598,-261.42267255,0.00044544,120]
[405980760,1771491255621,-500.0,0.00044544,120]
[405980761,1771491255644,-497.23957934,0.00044544,30]
[405980762,1771491255667,-420.92460229,0.00044544,30]
[405980763,1771491255690,-582.19847042,0.00044544,120]
[405980764,1771491255714,-798.90878975,0.00044544,120]
[405980765,1771491255737,-1872.50705445,0.00044544,120]
[405980766,1771491255760,-1588.07749173,0.00044544,120]
[405980767,1771491255783,-333.54637636,0.00044544,120]
[405980768,1771491255809,-352.19662272,0.00044544,120]
[405980769,1771491255833,-1331.98605029,0.00044544,30]
[405980770,1771491255860,-1593.69793126,0.00044544,37]
[405980771,1771491255900,-846.31034373,0.00044544,30]
[405980772,1771491255925,-312.2042592,0.00044544,120]
[405980773,1771491255949,-1701.05478817,0.00044544,120]
[405980774,1771491255974,-533.15712693,0.00044544,120]
[405980775,1771491255999,-210.82907603,0.00044544,120]
[405980776,1771491256023,-1085.27434693,0.00044544,120]
[405980777,1771491256046,-484.69332693,0.00044544,120]
[405980778,1771491256073,-201.50205791,0.00044544,120]
[405980779,1771491256099,-1000.0,0.00044544,30]
[405980780,1771491256122,-2102.32104158,0.00044544,120]
[405980781,1771491256148,-1000.0,0.00044544,30]
[405980782,1771491256172,-1000.0,0.00044544,30]
[405980783,1771491256196,-2007535.90375478,0.00044544,30]
[405980784,1771491256222,-3562.0885,0.00044544,60]
[405980785,1771491256245,-3170.3524,0.00044544,60]
[405980786,1771491256269,-3562.0885,0.00044544,60]
[405980787,1771491256293,-3170.3524,0.00044544,60]
[405980788,1771491256318,-3170.3524,0.00044544,60]
[405980789,1771491256342,-3562.0885,0.00044544,60]
[405980790,1771491256365,-3170.3524,0.00044544,60]
[405980791,1771491256389,-3562.0885,0.00044544,60]
[405980792,1771491256413,-3562.0885,0.00044544,60]
[405980793,1771491256444,-1268.14096,0.00044544,60]
[405980794,1771491256484,-1268.14096,0.00044544,60]